fUST/lending_fUST_20250913
["ID","MTS","AMOUNT","RATE_DAILY","PERIOD"]
[385272833,1757723444350,-151.0,0.00024899,7]
[385272834,1757723444359,-151.0,0.00024899,7]
[385272835,1757723444369,-715.02839755,0.00024899,2]
[385272836,1757723444378,-2857.25347661,0.00024899,2]
[385272837,1757723444388,-1719.75,0.000249,7]
[385272838,1757723444397,-56887.6,0.000249,7]
[385272839,1757723444407,-5445.25,0.000249,7]
[385272840,1757723444416,-847.0429734,0.000249,7]
[385272841,1757723444426,-151.0,0.000249,7]
[385272842,1757723444435,-151.0,0.000249,7]
[385272843,1757723444445,-161.0,0.000249,3]
[385272844,1757723444454,-161.0,0.000249,3]
[385272845,1757723444463,-166.0,0.000249,3]
[385272846,1757723444473,-161.0,0.000249,3]
[385272847,1757723444483,-166.0,0.000249,3]
[385272848,1757723444492,-161.0,0.000249,3]
[385272849,1757723444501,-161.0,0.000249,3]
[385272850,1757723444510,-161.0,0.000249,3]
[385272851,1757723444519,-161.0,0.000249,3]
[385272852,1757723444528,-156.0,0.000249,3]
[385272853,1757723444537,-157.6085146,0.000249,3]
[385272854,1757723444546,-156.0,0.000249,3]
[385272855,1757723444555,-156.0,0.000249,3]
[385272856,1757723444564,-156.0,0.000249,3]
[385272857,1757723444574,-160.74295818,0.000249,3]
[385272858,1757723444583,-328.0,0.000249,3]
[385272859,1757723444593,-328.0,0.000249,3]
[385272860,1757723444602,-328.0,0.000249,3]
[385272861,1757723444611,-328.0,0.000249,3]
[385272862,1757723444621,-328.0,0.000249,3]
[385272863,1757723444631,-328.0,0.000249,3]
[385272864,1757723444640,-328.0,0.000249,3]
[385272865,1757723444649,-328.0,0.000249,3]
[385272866,1757723444659,-328.0,0.000249,3]
[385272867,1757723444668,-328.0,0.000249,3]
[385272868,1757723444677,-328.0,0.000249,3]
[385272869,1757723444686,-328.0,0.000249,3]
[385272870,1757723444695,-328.0,0.000249,3]
[385272871,1757723444704,-328.0,0.000249,3]
[385272872,1757723444714,-328.0,0.000249,3]
[385272873,1757723444723,-328.0,0.000249,3]
[385272874,1757723444732,-328.0,0.000249,3]
[385272875,1757723444741,-328.0,0.000249,3]
[385272876,1757723444751,-328.0,0.000249,3]
[385272877,1757723444760,-328.0,0.000249,3]
[385272878,1757723444769,-328.0,0.000249,3]
[385272879,1757723444778,-328.0,0.000249,3]
[385272880,1757723444787,-328.0,0.000249,3]
[385272881,1757723444797,-328.0,0.000249,3]
[385272882,1757723444807,-328.0,0.000249,3]
[385272883,1757723444818,-302.0,0.000249,3]
[385272884,1757723444827,-1305.0,0.000249,3]
[385272885,1757723444836,-1305.0,0.000249,3]
[385272886,1757723444846,-1305.0,0.000249,3]
[385272887,1757723444855,-1305.0,0.000249,3]
[385272888,1757723444864,-1305.0,0.000249,3]
[385272889,1757723444873,-1305.0,0.000249,3]
[385272890,1757723444884,-1305.0,0.000249,3]
[385272891,1757723444894,-1305.0,0.000249,3]
[385272892,1757723444903,-1305.0,0.000249,3]
[385272893,1757723444912,-1305.0,0.000249,3]
[385272894,1757723444921,-1305.0,0.000249,3]
[385272895,1757723444930,-1305.0,0.000249,3]
[385272896,1757723444940,-1048.31459378,0.000249,3]
[385272897,1757723444949,-151.0,0.000249,7]
[385272898,1757723444959,-151.0,0.000249,7]
[385272899,1757723444969,-151.0,0.000249,7]
[385272900,1757723444980,-151.0,0.000249,7]
[385272901,1757723444990,-151.0,0.000249,7]
[385272902,1757723444999,-151.0,0.000249,7]
[385272903,1757723445009,-151.0,0.000249,7]
[385272904,1757723445018,-151.0,0.000249,7]
[385272905,1757723445027,-151.0,0.000249,7]
[385272906,1757723445037,-151.0,0.000249,7]
[385272907,1757723445046,-151.0,0.000249,7]
[385272908,1757723445056,-151.0,0.000249,7]
[385272909,1757723445065,-151.0,0.000249,7]
[385272910,1757723445075,-151.0,0.000249,7]
[385272911,1757723445084,-151.0,0.000249,7]
[385272912,1757723445094,-151.0,0.000249,7]
[385272913,1757723445103,-151.0,0.000249,7]
[385272914,1757723445112,-162567.11415487,0.000249,2]
[385272915,1757723445127,-601452.83884613,0.000249,2]
[385272916,1757723445136,-1000.0,0.000249,2]
[385272917,1757723445146,-1000.0,0.000249,2]
[385272918,1757723445155,-1000.0,0.000249,2]
[385272919,1757723445164,-1000.0,0.000249,2]
[385272920,1757723445173,-1000.0,0.000249,2]
[385272921,1757723445182,-1000.0,0.000249,2]
[385272923,1757723445191,-1000.0,0.000249,2]
[385272924,1757723445200,-1000.0,0.000249,2]
[385272926,1757723445210,-1000.0,0.000249,2]
[385272928,1757723445220,-1000.0,0.000249,2]
[385272929,1757723445229,-1000.0,0.000249,2]
[385272930,1757723445238,-1000.0,0.000249,2]
[385272931,1757723445248,-1000.0,0.000249,2]
[385272932,1757723445257,-1000.0,0.000249,2]
[385272933,1757723445266,-1000.0,0.000249,2]
[385272935,1757723445357,-1000.0,0.000249,2]
[385272936,1757723445367,-1000.0,0.000249,2]
[385272937,1757723445378,-1000.0,0.000249,2]
[385272938,1757723445387,-1000.0,0.000249,2]
[385272939,1757723445396,-1000.0,0.000249,2]
[385272940,1757723445405,-1000.0,0.000249,2]
[385272941,1757723445416,-1000.0,0.000249,2]
[385272942,1757723445425,-1000.0,0.000249,2]
[385272943,1757723445435,-1000.0,0.000249,2]
[385272944,1757723445445,-1000.0,0.000249,2]
[385272945,1757723445455,-1000.0,0.000249,2]
[385272946,1757723445465,-1000.0,0.000249,2]
[385272948,1757723445475,-1000.0,0.000249,2]
[385272950,1757723445485,-864.0,0.00024921,20]
[385272951,1757723445494,-157.0,0.00024932,2]
[385272952,1757723445504,-186.0,0.00024932,2]
[385272953,1757723445513,-157.0,0.00024932,2]
[385272954,1757723445523,-157.0,0.00024932,2]
[385272955,1757723445532,-157.0,0.00025206,2]
[385272956,1757723445542,-157.0,0.00025206,2]
[385272957,1757723445551,-157.0,0.00025206,2]
[385272958,1757723445561,-1237.66531679,0.00025318,2]
[385272959,1757723445570,-151.0,0.00025411,7]
[385272960,1757723445580,-151.0,0.00025411,7]
[385272961,1757723445589,-713.40224886,0.00025435,2]
[385272962,1757723445599,-157.0,0.0002548,2]
[385272963,1757723445609,-157.0,0.0002548,2]
[385272964,1757723445618,-157.0,0.0002548,2]
[385272965,1757723445628,-215.0,0.00025754,2]
[385272966,1757723445637,-215.0,0.00025754,2]
[385272967,1757723445646,-215.0,0.00025754,2]
[385272968,1757723445656,-168.0,0.0002584,2]
[385272969,1757723445666,-233.13074058,0.000259,7]
[385272970,1757723445675,-789.45849837,0.00025923,2]
[385272971,1757723445685,-168.0,0.00026026,2]
[385272972,1757723445694,-500.0,0.00026027,2]
[385272973,1757723445704,-500.0,0.00026027,2]
[385272974,1757723445713,-500.0,0.00026027,2]
[385272975,1757723445723,-500.0,0.00026027,2]
[385272976,1757723445732,-320.0,0.00026027,2]
[385272978,1757723445742,-409.0,0.00026064,2]
[385272980,1757723445751,-713.40224886,0.0002607,2]
[385272982,1757723445760,-749.16487996,0.00026145,4]
[385272984,1757723445769,-5369.0,0.00026205,2]
[385272986,1757723445779,-1719.75,0.000263,7]
[385272988,1757723445788,-151.0,0.0002639,7]
[385272990,1757723445797,-194.117956,0.0002639,7]
[385272992,1757723445810,-298.254785,0.0002639,7]
[385272994,1757723445819,-151.0,0.0002639,7]
[385272996,1757723445829,-151.0,0.0002639,7]
[385272998,1757723445838,-166.358716,0.0002639,7]
[385273000,1757723445848,-151.0,0.0002639,7]
[385273002,1757723445858,-56887.6,0.000264,7]
[385273003,1757723445868,-5445.25,0.000264,7]
[385273006,1757723445880,-151.0,0.000264,7]
[385273007,1757723445889,-151.0,0.000264,7]
[385273010,1757723445899,-151.0,0.000264,7]
[385273012,1757723445908,-259.120212,0.000264,7]
[385273014,1757723445917,-179.0,0.00026435,2]
[385273015,1757723445927,-1237.66531679,0.00026524,2]
[385273017,1757723445936,-168.0,0.00026592,2]
[385273019,1757723445946,-180.0,0.00026686,2]
[385273021,1757723445954,-600.0,0.00026689,2]
[385273023,1757723445963,-600.0,0.00026694,2]
[385273025,1757723445972,-1000.0,0.000267,2]
[385273027,1757723445981,-713.40224886,0.00026705,2]
[385273029,1757723445991,-600.0,0.00026718,2]
[385273031,1757723445999,-847.0429734,0.00026725,3]
[385273033,1757723446008,-600.0,0.00026735,2]
[385273035,1757723446018,-500.0,0.0002675,2]
[385273036,1757723446028,-2435.63121813,0.0002675,2]
[385273037,1757723446037,-600.0,0.00026761,2]
[385273038,1757723446047,-600.0,0.00026801,2]
[385273039,1757723446056,-800.0,0.00026812,2]
[385273040,1757723446065,-800.0,0.00026819,2]
[385273041,1757723446074,-800.0,0.00026822,2]
[385273042,1757723446083,-168.0,0.0002683,2]
[385273043,1757723446093,-800.0,0.00026835,2]
[385273044,1757723446102,-800.0,0.00026853,2]
[385273045,1757723446111,-600.0,0.00026878,2]
[385273047,1757723446120,-180.0,0.00026881,7]
[385273049,1757723446132,-800.0,0.00026882,2]
[385273051,1757723446141,-168.0,0.00026911,2]
[385273053,1757723446151,-168.0,0.00026914,2]
[385273055,1757723446159,-600.0,0.00026922,2]
[385273057,1757723446168,-800.0,0.00026945,2]
[385273058,1757723446177,-168.0,0.00026951,7]
[385273059,1757723446186,-800.0,0.0002697,2]
[385273060,1757723446195,-500.0,0.00026973,2]
[385273061,1757723446204,-500.0,0.00026973,2]
[385273062,1757723446213,-500.0,0.00026973,2]
[385273064,1757723446222,-600.0,0.00026979,2]
[385273065,1757723446232,-179.0,0.00026987,2]
[385273066,1757723446241,-49858.10628071,0.00027,60]
[385273067,1757723446251,-600.0,0.00027,14]
[385273068,1757723446260,-151.0,0.00027,7]
[385273069,1757723446269,-154.83,0.00027042,7]
[385273070,1757723446278,-1261.4,0.00027053,7]
[385273071,1757723446287,-600.0,0.00027053,2]
[385273072,1757723446296,-168.0,0.00027063,2]
[385273073,1757723446305,-500.0,0.00027092,2]
[385273074,1757723446315,-600.0,0.00027102,2]
[385273075,1757723446324,-500.0,0.00027133,2]
[385273076,1757723446334,-500.0,0.00027136,2]
[385273077,1757723446343,-600.0,0.00027136,2]
[385273078,1757723446353,-154.83,0.00027142,7]
[385273079,1757723446362,-1261.4,0.00027153,7]
[385273080,1757723446371,-157.67052,0.00027164,15]
[385273081,1757723446382,-168.0,0.00027174,2]
[385273082,1757723446390,-151.0,0.00027179,6]
[385273083,1757723446399,-500.0,0.00027182,2]
[385273084,1757723446409,-500.0,0.0002719,2]
[385273085,1757723446418,-179.0,0.00027216,7]
[385273086,1757723446427,-500.0,0.00027222,2]
[385273087,1757723446436,-500.0,0.00027231,2]
[385273088,1757723446446,-154.83,0.00027242,7]
[385273089,1757723446455,-500.0,0.00027248,2]
[385273090,1757723446464,-500.0,0.00027251,10]
[385273091,1757723446473,-168.0,0.00027252,2]
[385273092,1757723446482,-1261.4,0.00027253,7]
[385273093,1757723446491,-500.0,0.00027284,10]
[385273094,1757723446500,-500.0,0.00027333,2]
[385273095,1757723446509,-2579.99920772,0.0002734,2]
[385273096,1757723446518,-713.40224886,0.0002734,2]
[385273097,1757723446528,-154.83,0.00027342,7]
[385273098,1757723446537,-500.0,0.00027344,2]
[385273099,1757723446546,-500.0,0.00027348,2]
[385273100,1757723446555,-600.0,0.00027349,2]
[385273101,1757723446565,-1261.4,0.00027353,7]
[385273102,1757723446574,-168.0,0.00027372,2]
[385273103,1757723446584,-600.0,0.00027372,2]
[385273104,1757723446593,-155.0,0.00027389,2]
[385273105,1757723446603,-197.44197985,0.0002739,2]
[385273106,1757723446612,-161.37333496,0.0002739,7]
[385273107,1757723446622,-749.16487996,0.00027394,7]
[385273108,1757723446632,-1000.0,0.00027397,7]
[385273109,1757723446642,-1000.0,0.00027397,7]
[385273110,1757723446651,-1000.0,0.00027397,7]
[385273111,1757723446660,-1000.0,0.00027397,7]
[385273112,1757723446669,-166.528481,0.00027397,2]
[385273113,1757723446678,-200.0,0.00027397,5]
[385273114,1757723446688,-1584.04255427,0.00027399,120]
[385273115,1757723446697,-2000.0,0.000274,2]
[385273116,1757723446783,-2000.0,0.000274,2]
[385273117,1757723446793,-1719.75,0.000274,7]
[385273118,1757723446802,-1000.0,0.00027413,20]
[385273119,1757723446816,-315523.66791414,0.0002744,7]
[385273120,1757723446824,-151.0,0.0002744,7]
[385273121,1757723446834,-154.83,0.00027442,15]
[385273122,1757723446843,-500.0,0.00027447,2]
[385273123,1757723446853,-179.0,0.0002745,2]
[385273124,1757723446862,-1261.4,0.00027453,15]
[385273125,1757723446871,-151.31580864,0.00027473,5]
[385273126,1757723446881,-500.0,0.00027473,5]
[385273127,1757723446890,-300.0,0.00027473,5]
[385273128,1757723446899,-500.0,0.00027473,5]
[385273129,1757723446908,-500.0,0.00027473,5]
[385273130,1757723446917,-500.0,0.00027473,5]
[385273131,1757723446926,-500.0,0.00027473,5]
[385273132,1757723446936,-500.0,0.00027473,5]
[385273133,1757723446945,-28956.29911388,0.0002749,60]
[385273134,1757723446955,-45281.43924515,0.000275,2]
[385273135,1757723446964,-1393.70809,0.000275,120]
[385273136,1757723446975,-1569.13,0.000275,7]
[385273137,1757723446984,-2579.99920763,0.00027517,2]
[385273138,1757723446993,-1000.0,0.00027521,2]
[385273139,1757723447003,-1000.0,0.00027521,5]
[385273140,1757723447012,-668.85,0.00027539,4]
[385273141,1757723447022,-154.83,0.00027542,15]
[385273142,1757723447031,-1261.4,0.00027553,15]
[385273143,1757723447043,-168.0,0.00027555,2]
[385273144,1757723447052,-182.0,0.00027572,2]
[385273145,1757723447061,-154.12483647,0.0002759,2]
[385273146,1757723447070,-200.42412578,0.0002759,2]
[385273148,1757723447083,-56887.6,0.000276,7]
[385273150,1757723447092,-5445.25,0.000276,7]
[385273152,1757723447102,-500.0,0.000276,2]
[385273153,1757723447110,-152.79744553,0.00027606,2]
[385273154,1757723447119,-161.61268277,0.00027606,2]
[385273155,1757723447129,-500.0,0.00027618,2]
[385273156,1757723447138,-500.0,0.0002762,2]
[385273157,1757723447148,-1441.605,0.00027623,2]
[385273158,1757723447157,-154.83,0.00027642,15]
[385273159,1757723447167,-1261.4,0.00027653,15]
[385273160,1757723447175,-154.12483647,0.0002769,2]
[385273161,1757723447184,-2579.99920763,0.00027694,2]
[385273162,1757723447193,-152.79744553,0.00027706,2]
[385273163,1757723447203,-161.61268277,0.00027706,2]
[385273164,1757723447214,-500.0,0.00027708,2]
[385273165,1757723447223,-1441.605,0.00027723,2]
[385273166,1757723447233,-1237.66531679,0.00027729,2]
[385273167,1757723447243,-157.67052,0.00027739,2]
[385273168,1757723447253,-154.83,0.00027742,15]
[385273169,1757723447263,-1261.4,0.00027753,15]
[385273170,1757723447273,-499.3,0.00027766,2]
[385273171,1757723447284,-154.12483647,0.0002779,2]
[385273172,1757723447296,-500.0,0.00027796,2]
[385273173,1757723447316,-152.79744553,0.00027806,2]
[385273174,1757723447325,-161.61268277,0.00027806,2]
[385273175,1757723447334,-1441.605,0.00027823,2]
[385273176,1757723447343,-154.83,0.00027842,15]
[385273177,1757723447352,-600.0,0.00027849,2]
[385273178,1757723447361,-1261.4,0.00027853,15]
[385273179,1757723447370,-500.0,0.00027855,2]
[385273180,1757723447380,-2579.99920763,0.00027871,2]
[385273181,1757723447390,-729.36585017,0.0002788,2]
[385273182,1757723447399,-500.0,0.00027884,2]
[385273183,1757723447408,-600.0,0.00027887,2]
[385273184,1757723447418,-154.12483647,0.0002789,2]
[385273185,1757723447428,-169.45625432,0.000279,5]
[385273186,1757723447438,-152.79744553,0.00027906,2]
[385273187,1757723447447,-161.61268277,0.00027906,2]
[385273188,1757723447456,-1441.605,0.00027923,2]
[385273189,1757723447466,-154.83,0.00027942,15]
[385273190,1757723447475,-1261.4,0.00027953,15]
[385273191,1757723447485,-157.67052,0.00027955,15]
[385273192,1757723447494,-600.0,0.00027956,2]
[385273193,1757723447503,-5000.0,0.0002796,3]
[385273194,1757723447512,-154.12483647,0.0002799,2]
[385273195,1757723447522,-151.0,0.00027994,7]
[385273196,1757723447531,-1000.0,0.00028,4]
[385273197,1757723447541,-10288.01781496,0.00028,5]
[385273198,1757723447550,-160.0,0.00028,3]
[385273199,1757723447560,-1393.70809,0.00028,120]
[385273200,1757723447569,-300.0,0.00028,120]
[385273201,1757723447579,-7706.91699619,0.00028,120]
[385273202,1757723447588,-14000.0,0.00028,2]
[385273203,1757723447597,-160.0,0.00028,3]
[385273204,1757723447607,-1000.0,0.00028,120]
[385273205,1757723447616,-785.12442879,0.00028,3]
[385273206,1757723447625,-417.15472785,0.00028,120]
[385273207,1757723447635,-160.0,0.00028,3]
[385273208,1757723447644,-3001.70589318,0.00028,30]
[385273209,1757723447653,-1037.65,0.00028,2]
[385273210,1757723447662,-600.0,0.00028005,2]
[385273211,1757723447672,-152.79744553,0.00028006,2]
[385273212,1757723447681,-161.61268277,0.00028006,2]
[385273213,1757723447691,-190.0,0.00028015,2]
[385273214,1757723447700,-389.75179488,0.00028021,5]
[385273215,1757723447709,-191.68738527,0.00028021,5]
[385273216,1757723447719,-1000.0,0.00028021,5]
[385273217,1757723447728,-1000.0,0.00028021,5]
[385273218,1757723447737,-1441.605,0.00028023,2]
[385273219,1757723447746,-500.0,0.0002803,5]
[385273220,1757723447755,-500.0,0.0002803,20]
[385273221,1757723447764,-500.0,0.0002803,5]
[385273222,1757723447773,-386.45587177,0.0002803,20]
[385273223,1757723447782,-500.0,0.0002803,5]
[385273224,1757723447791,-500.0,0.0002803,20]
[385273225,1757723447800,-500.0,0.0002803,5]
[385273226,1757723447811,-500.0,0.00028034,5]
[385273227,1757723447820,-500.0,0.00028034,20]
[385273228,1757723447829,-500.0,0.00028034,5]
[385273229,1757723447839,-500.0,0.00028034,20]
[385273230,1757723447849,-500.0,0.00028034,20]
[385273231,1757723447858,-500.0,0.00028034,5]
[385273232,1757723447867,-500.0,0.00028034,5]
[385273233,1757723447877,-500.0,0.00028035,20]
[385273234,1757723447887,-154.99321453,0.00028042,15]
[385273235,1757723447896,-500.0,0.00028042,5]
[385273236,1757723447905,-2579.99920763,0.00028048,2]
[385273237,1757723447914,-500.0,0.00028049,2]
[385273238,1757723447923,-1261.4,0.00028053,15]
[385273239,1757723447933,-168.0,0.00028068,2]
[385273240,1757723447942,-1000.0,0.00028068,2]
[385273241,1757723447951,-500.0,0.00028074,2]
[385273242,1757723447960,-154.12483647,0.0002809,2]
[385273243,1757723447970,-152.79744553,0.00028106,2]
[385273244,1757723447979,-161.61268277,0.00028106,2]
[385273245,1757723447988,-2559.7094869,0.00028116,2]
[385273246,1757723447997,-1980.3682806,0.00028116,2]
[385273247,1757723448007,-1374.8741708,0.00028116,2]
[385273248,1757723448016,-1441.605,0.00028123,2]
[385273249,1757723448025,-500.0,0.00028136,2]
[385273250,1757723448105,-1037.65,0.0002814,2]
[385273251,1757723448132,-1261.4,0.00028153,15]
[385273252,1757723448146,-154.12483647,0.0002819,2]
[385273253,1757723448155,-505.0,0.00028198,120]
[385273254,1757723448165,-152.79744553,0.00028206,2]
[385273255,1757723448174,-161.61268277,0.00028206,2]
[385273256,1757723448184,-1441.605,0.00028223,2]
[385273257,1757723448193,-2579.99920763,0.00028225,2]
[385273258,1757723448203,-600.0,0.00028238,2]
[385273259,1757723448212,-1261.4,0.00028253,15]
[385273260,1757723448221,-154.12483647,0.0002829,2]
[385273261,1757723448231,-152.79744553,0.00028306,2]
[385273262,1757723448240,-1441.605,0.00028323,2]
[385273263,1757723448249,-600.0,0.00028328,2]
[385273264,1757723448259,-600.0,0.00028352,2]
[385273265,1757723448268,-1261.4,0.00028353,15]
[385273266,1757723448277,-8433.97295786,0.00028356,5]
[385273267,1757723448879,-1000.0,0.000249,2]
[385273268,1757723448890,-1000.0,0.000249,2]
[385273269,1757723448900,-401.00668728,0.000249,2]
[385273282,1757724521219,235.0,0.000155,2]
[385273287,1757724632157,-206.26107979,0.00018716,2]
[385273289,1757724632168,-5000.0,0.00019701,2]
[385273291,1757724632178,-554.43145294,0.000199,2]
[385273293,1757724632187,-554.43145266,0.00021149,2]
[385273295,1757724632195,-554.43145266,0.00022398,2]
[385273296,1757724632205,-554.43145266,0.00023647,2]
[385273297,1757724632214,-300.0,0.00024461,2]
[385273298,1757724632223,-266.0,0.00024461,2]
[385273299,1757724632232,-300.0,0.00024461,2]
[385273300,1757724632241,-1200.0,0.00024461,2]
[385273302,1757724632250,-160.0,0.00024462,2]
[385273303,1757724632258,-417.15472785,0.00024462,2]
[385273304,1757724632267,-531.04384426,0.00024462,2]
[385273305,1757724632277,-160.0,0.00024462,2]
[385273306,1757724632289,-160.0,0.00024462,2]
[385273307,1757724632303,-217.7145751,0.00024462,2]
[385273309,1757724632314,-3526.01856001,0.00024462,2]
[385273311,1757724632323,-160.0,0.00024472,2]
[385273313,1757724632335,-160.0,0.00024472,2]
[385273315,1757724632344,-160.0,0.00024472,2]
[385273317,1757724632354,-847.0429734,0.00024472,2]
[385273319,1757724632364,-233.13074058,0.00024472,2]
[385273321,1757724632374,-679.0,0.00024494,2]
[385273323,1757724632383,-554.43145266,0.00024896,2]
[385273325,1757724632393,-5259.2275484,0.00024984,2]
[385273327,1757724632402,-670.0,0.00025257,2]
[385273329,1757724632411,-300.0,0.00025397,20]
[385273331,1757724632420,-300.0,0.00025397,20]
[385273333,1757724632430,-300.0,0.00025397,20]
[385273335,1757724632439,-300.0,0.00025397,20]
[385273337,1757724632448,-300.0,0.00025397,20]
[385273339,1757724632458,-300.0,0.00025397,20]
[385273341,1757724632467,-300.0,0.00025397,20]
[385273343,1757724632476,-300.0,0.00025397,20]
[385273345,1757724632486,-300.0,0.00025397,20]
[385273347,1757724632495,-300.0,0.00025397,20]
[385273348,1757724632505,-300.0,0.00025397,20]
[385273349,1757724632515,-300.0,0.00025397,20]
[385273350,1757724632524,-300.0,0.00025397,20]
[385273352,1757724632534,-300.0,0.00025397,20]
[385273354,1757724632543,-300.0,0.00025397,20]
[385273356,1757724632552,-600.0,0.00025397,20]
[385273358,1757724632561,-168.0,0.00025477,2]
[385273360,1757724632570,-169.749669,0.00025518,15]
[385273362,1757724632579,-168.0,0.00025654,2]
[385273364,1757724632589,-167.488258,0.00025691,2]
[385273366,1757724632598,-168.0,0.00025783,7]
[385273368,1757724632607,-168.0,0.00025805,2]
[385273370,1757724632617,-500.0,0.00026027,2]
[385273372,1757724632626,-500.0,0.00026027,2]
[385273374,1757724632635,-420.0,0.00026027,2]
[385273376,1757724632644,-152.646,0.00026145,12]
[385273378,1757724632653,-554.43145266,0.00026145,4]
[385273380,1757724632662,-168.0,0.00026321,2]
[385273382,1757724632672,-168.0,0.00026355,7]
[385273384,1757724632681,-168.0,0.00026364,2]
[385273386,1757724632691,-168.0,0.00026465,2]
[385273388,1757724632700,-500.0,0.00026544,2]
[385273390,1757724632710,-168.0,0.00026545,2]
[385273392,1757724632720,-168.0,0.00026691,7]
[385273394,1757724632729,-500.0,0.00026711,2]
[385273396,1757724632739,-168.0,0.00026789,2]
[385273398,1757724632748,-500.0,0.00026818,2]
[385273400,1757724632758,-168.0,0.00026862,2]
[385273402,1757724632767,-500.0,0.00026867,2]
[385273404,1757724632776,-168.0,0.00026901,2]
[385273406,1757724632786,-500.0,0.0002705,2]
[385273408,1757724632795,-500.0,0.00027092,2]
[385273410,1757724632804,-168.0,0.00027141,2]
[385273412,1757724632813,-168.0,0.00027154,2]
[385273414,1757724632823,-168.0,0.00027328,2]
[385273416,1757724632832,-500.0,0.00027366,2]
[385273418,1757724632842,-554.43145266,0.00027394,7]
[385273420,1757724632852,-159.205619,0.00027397,2]
[385273422,1757724632861,-500.0,0.00027398,10]
[385273424,1757724632871,-500.0,0.00027425,10]
[385273426,1757724632881,-500.0,0.00027459,2]
[385273428,1757724632890,-526.30566558,0.00027501,2]
[385273430,1757724632900,-376.58931763,0.00027512,2]
[385273432,1757724632910,-500.0,0.0002764,2]
[385273434,1757724632919,-168.0,0.00027646,2]
[385273436,1757724632928,-168.0,0.00027724,2]
[385273438,1757724632938,-500.0,0.0002776,2]
[385273440,1757724632947,-376.58931763,0.00027793,2]
[385273442,1757724632956,-340.56085446,0.00027914,2]
[385273455,1757724633073,-159.43914554,0.00027914,2]
[385273457,1757724633086,-542.78299332,0.00027915,2]
[385273459,1757724633096,-720.0,0.00027937,20]
[385273461,1757724633106,-577.77786114,0.00027985,2]
[385273520,1757724640698,-14.65950333,0.00027985,2]
[385273521,1757724640707,-804.0,0.00028,2]
[385273522,1757724640717,-2000.0,0.00028,2]
[385273523,1757724640726,-160.0,0.00028,3]
[385273524,1757724640736,-160.0,0.00028,3]
[385273525,1757724640745,-571.1483878,0.00028009,2]
[385273526,1757724640755,-439.83099755,0.00028009,2]
[385273528,1757724643630,-169.74967,0.00027955,20]
[385273529,1757724643640,-2.04889405,0.00028009,2]
[385273530,1757724643649,-306.7758939,0.00028009,2]
[385273531,1757724643659,-500.0,0.0002803,5]
[385273532,1757724643668,-390.89013911,0.0002803,20]
[385273533,1757724644109,-109.10986089,0.0002803,20]
[385273534,1757724644119,-500.0,0.0002803,5]
[385273535,1757724644128,-500.0,0.0002803,5]
[385273536,1757724644137,-500.0,0.0002803,5]
[385273537,1757724644147,-500.0,0.0002803,5]
[385273538,1757724644156,-500.0,0.0002803,20]